{"text_format":"3","workbook":"xlsx","n_sheets":2,"sheets":["Početak","Profitabilnost klijenata"],"not_rendered":{"charts":1},"read":"whole","date_system":"1900"}

{"sheet":"Početak","index":0,"n_rows":7,"n_cols":2,"rows_kept":7}
[null,"O OVOM PREDLOŠKU"]
[null,"Iskoristite ovu analiza profitabilnosti klijenata da biste pratili aktivnost klijenata, trošak prodaje i drugi troškovi."]
[null,"U tablice unesite informacije, kao što su naziv tvrtke i datum, ali i ostale pojedinosti."]
[null,"Vrijednosti u ćelijama sadrže formule, a one u tablici Sažeta metrika automatski se izračunavaju te se na temelju toga ažurira i grafikon."]
[null,"Napomena:  "]
[null,"Dodatne su upute navedene u stupcu A na radnom listu PROFITABILNOST KLIJENATA. Ovaj je tekst namjerno skriven. Da biste uklonili tekst, odaberite stupac A, a zatim odaberite IZBRIŠI. Da biste otkrili tekst, odaberite stupac A, a zatim promijenite boju fonta."]
[null,"Da biste saznali više o tablicama na radnom listu, pritisnite SHIFT i zatim F10 na tablici pa odaberite mogućnost TABLICA i potom ZAMJENSKI TEKST."]

{"sheet":"Profitabilnost klijenata","index":1,"n_rows":37,"n_cols":6,"rows_kept":37,"merged":[[36,1,36,5]]}
["Na ovom radnom listu stvorite analiza profitabilnosti klijenata. Korisne upute za korištenje ovog radnog lista nalaze se u ćelijama u ovom stupcu. Pomoću tipke sa strelicom prema dolje počnite s radom."]
["U ćeliju zdesna unesite naziv tvrtke.","Naziv tvrtke"]
["U ćeliji zdesna nalazi se naslov ovog radnog lista.","Analiza profitabilnosti klijenata"]
["U ćeliju zdesna unesite datum.","Datum"]
["U ćeliji zdesna nalazi se savjet.","Sive će ćelije biti izračunate umjesto vas. U njih ne morate ništa unositi."]
["Unesite pojedinosti u tablicu Aktivnost klijenata počevši s ćelijom na desnoj strani. Sljedeća je uputa u ćeliji A12.","Aktivnost klijenata:","Naziv segmenta 1","Naziv segmenta 2","Naziv segmenta 3","Ukupno"]
[null,"Broj aktivnih klijenata – početak razdoblja",5,8,8,{"$f":"SUM(C7:E7)","v":21}]
[null,"Broj dodanih klijenata",2,4,4,{"$f":"SUM(C8:E8)","v":10}]
[null,"Broj izgubljenih/otkazanih klijenata",{"v":-1,"d":"-1 "},{"v":-2,"d":"-2 "},{"v":-2,"d":"-2 "},{"$f":"SUM(C9:E9)","v":{"v":-5,"d":"-5 "}}]
[null,"Broj aktivnih klijenata – završetak razdoblja",{"$f":"SUBTOTAL(109,AktivnostiKlijenata[Naziv segmenta 1])","v":6},{"$f":"SUBTOTAL(109,AktivnostiKlijenata[Naziv segmenta 2])","v":10},{"$f":"SUBTOTAL(109,AktivnostiKlijenata[Naziv segmenta 3])","v":10},{"$f":"SUBTOTAL(109,AktivnostiKlijenata[Ukupno])","v":26}]
[]
["Unesite pojedinosti u tablicu Analiza profitabilnosti počevši s ćelijom na desnoj strani. Sljedeća se uputa nalazi u ćeliji A16.","Analiza profitabilnosti:","Naziv segmenta 1","Naziv segmenta 2","Naziv segmenta 3","Ukupno"]
[null,"Prihod po segmentu",{"v":1500000,"d":"1,500,000.00 kn"},{"v":1800000,"d":"1,800,000.00 kn"},{"v":2500000,"d":"2,500,000.00 kn"},{"$f":"SUM(AnalizaProfitabilnosti[[#This Row],[Naziv segmenta 1]:[Naziv segmenta 3]])","v":{"v":5800000,"d":"5,800,000.00 kn"}}]
[null,"Težinski faktor",{"$f":"+C13/$F$13","v":{"v":0.25862068965517243,"d":"26%"}},{"$f":"+D13/$F$13","v":{"v":0.3103448275862069,"d":"31%"}},{"$f":"+E13/$F$13","v":{"v":0.43103448275862066,"d":"43%"}},{"$f":"SUM(AnalizaProfitabilnosti[[#This Row],[Naziv segmenta 1]:[Naziv segmenta 3]])","v":{"v":1,"d":"100%"}}]
[]
["Unesite pojedinosti u tablicu Trošak prodaje počevši s ćelijom na desnoj strani. Sljedeća se uputa nalazi u ćeliji A23.","Trošak prodaje:","Naziv segmenta 1","Naziv segmenta 2","Naziv segmenta 3","Ukupno"]
[null,"Trenutni troškovi servisa i podrške",{"v":1000000,"d":"1,000,000.00 kn"},{"v":1400000,"d":"1,400,000.00 kn"},{"v":1400000,"d":"1,400,000.00 kn"},{"$f":"SUM(C17:E17)","v":{"v":3800000,"d":"3,800,000.00 kn"}}]
[null,"Drugi izravni troškovi klijenata",{"v":200000,"d":"200,000.00 kn"},{"v":100000,"d":"100,000.00 kn"},{"v":100000,"d":"100,000.00 kn"},{"$f":"SUM(C18:E18)","v":{"v":400000,"d":"400,000.00 kn"}}]
[null,"Ukupan trošak prodaje",{"$f":"SUM(C17:C18)","v":{"v":1200000,"d":"1,200,000.00 kn"}},{"$f":"SUM(D17:D18)","v":{"v":1500000,"d":"1,500,000.00 kn"}},{"$f":"SUM(E17:E18)","v":{"v":1500000,"d":"1,500,000.00 kn"}},{"$f":"SUM(F17:F18)","v":{"v":4200000,"d":"4,200,000.00 kn"}}]
[null,"Bruto marža",{"$f":"+C13-C19","v":{"v":300000,"d":"300,000.00 kn"}},{"$f":"+D13-D19","v":{"v":300000,"d":"300,000.00 kn"}},{"$f":"+E13-E19","v":{"v":1000000,"d":"1,000,000.00 kn"}},{"$f":"+F13-F19","v":{"v":1600000,"d":"1,600,000.00 kn"}}]
[null,"Težinski faktor",{"$f":"MAX(0, MIN(1,C20/$F$20))","v":{"v":0.1875,"d":"19%"}},{"$f":"MAX(0, MIN(1,D20/$F$20))","v":{"v":0.1875,"d":"19%"}},{"$f":"MAX(0, MIN(1,E20/$F$20))","v":{"v":0.625,"d":"63%"}},{"$f":"SUM(C21:E21)","v":{"v":1,"d":"100%"}}]
[]
["Unesite pojedinosti u tablicu Drugi troškovi počevši s ćelijom na desnoj strani. Sljedeće se upute nalaze u ćeliji A31.","Drugi troškovi:","Naziv segmenta 1","Naziv segmenta 2","Naziv segmenta 3","Ukupno"]
[null,"Akvizicija korisnika",{"v":105000,"d":"105,000.00 kn"},{"v":120000,"d":"120,000.00 kn"},{"v":235000,"d":"235,000.00 kn"},{"$f":"SUM(DrugiTroškovi[[#This Row],[Naziv segmenta 1]:[Naziv segmenta 3]])","v":{"v":460000,"d":"460,000.00 kn"}}]
[null,"Marketing klijenata",{"v":150000,"d":"150,000.00 kn"},{"v":125000,"d":"125,000.00 kn"},{"v":275000,"d":"275,000.00 kn"},{"$f":"SUM(C25:E25)","v":{"v":550000,"d":"550,000.00 kn"}}]
[null,"Otkazivanje klijenata",{"v":80000,"d":"80,000.00 kn"},{"v":190000,"d":"190,000.00 kn"},{"v":140000,"d":"140,000.00 kn"},{"$f":"SUM(C26:E26)","v":{"v":410000,"d":"410,000.00 kn"}}]
[null,"Ukupni drugi troškovi klijenata",{"$f":"SUM(C24:C26)","v":{"v":335000,"d":"335,000.00 kn"}},{"$f":"SUM(D24:D26)","v":{"v":435000,"d":"435,000.00 kn"}},{"$f":"SUM(E24:E26)","v":{"v":650000,"d":"650,000.00 kn"}},{"$f":"SUM(F24:F26)","v":{"v":1420000,"d":"1,420,000.00 kn"}}]
[null,"Dobit klijenata prema segmentima",{"$f":"+C20-C27","v":{"v":-35000,"d":"-35,000.00 kn"}},{"$f":"+D20-D27","v":{"v":-135000,"d":"-135,000.00 kn"}},{"$f":"+E20-E27","v":{"v":350000,"d":"350,000.00 kn"}},{"$f":"SUM(C28:E28)","v":{"v":180000,"d":"180,000.00 kn"}}]
[null,"Težinski faktor",{"$f":"MAX(0,MIN(1, C28/$F$28))","v":{"v":0,"d":"0%"}},{"$f":"MAX(0,MIN(1, D28/$F$28))","v":{"v":0,"d":"0%"}},{"$f":"MAX(0,MIN(1, E28/$F$28))","v":{"v":1,"d":"100%"}},{"$f":"SUM(C29:E29)","v":{"v":1,"d":"100%"}}]
[]
["Tablica Sažeta metrika počinje u desnoj ćeliji i automatski se ažurira. Sljedeće se upute nalaze u ćeliji A37.","Sažeta metrika:","Naziv segmenta 1","Naziv segmenta 2","Naziv segmenta 3","Trend"]
[null,"Prosječni trošak prema novom klijentu",{"$f":"+C24/C8","v":{"v":52500,"d":"52,500.00 kn"}},{"$f":"+D24/D8","v":{"v":30000,"d":"30,000.00 kn"}},{"$f":"+E24/E8","v":{"v":58750,"d":"58,750.00 kn"}}]
[null,"Prosječni trošak prema otkazanom klijentu",{"$f":"-C26/C9","v":{"v":80000,"d":"80,000.00 kn"}},{"$f":"-D26/D9","v":{"v":95000,"d":"95,000.00 kn"}},{"$f":"-E26/E9","v":{"v":70000,"d":"70,000.00 kn"}}]
[null,"Prosječni marketinški trošak po aktivnim klijentima",{"$f":"+C26/AktivnostiKlijenata[[#Totals],[Naziv segmenta 1]]","v":{"v":13333.333333333334,"d":"13,333.33 kn"}},{"$f":"+D25/AktivnostiKlijenata[[#Totals],[Naziv segmenta 2]]","v":{"v":12500,"d":"12,500.00 kn"}},{"$f":"+E25/AktivnostiKlijenata[[#Totals],[Naziv segmenta 3]]","v":{"v":27500,"d":"27,500.00 kn"}}]
[null,"Prosječna dobit (gubitak) po klijentu",{"$f":"+C29/AktivnostiKlijenata[[#Totals],[Naziv segmenta 1]]","v":{"v":0,"d":"0.00 kn"}},{"$f":"+D28/AktivnostiKlijenata[[#Totals],[Naziv segmenta 2]]","v":{"v":-13500,"d":"-13,500.00 kn"}},{"$f":"+E28/AktivnostiKlijenata[[#Totals],[Naziv segmenta 3]]","v":{"v":35000,"d":"35,000.00 kn"}}]
[]
["Grupirani stupčasti grafikon pokazuje sažeta metrika prema segmentu klijenata i nalazi se u desnoj ćeliji.","Grupirani stupčasti grafikon pokazuje sažeta metrika prema segmentu klijenata i nalazi se u ovoj ćeliji."]